bitfinex/quotes_BTCUSD_20230111
["timestamp","ask_amount","ask_price","bid_price","bid_amount"]
[1673402785694,4.93976326,17456.0,17455.0,0.00040138]
[1673402786724,4.48978118,17456.0,17455.0,0.00040138]
[1673402787519,5.08372885,17456.0,17455.0,0.00040138]
[1673402787789,5.98787167,17456.0,17455.0,0.00040138]
[1673402788302,7.70761534,17456.0,17455.0,0.00040138]
[1673402788852,0.3,17455.0,17453.0,0.0004566]
[1673402789113,4.01203604,17454.0,17453.0,0.0004566]
[1673402789372,0.3,17453.0,17452.0,0.01549005]
[1673402789649,3.97794124,17453.0,17452.0,0.01549005]
[1673402789912,3.97794124,17453.0,17452.0,0.01449019]
[1673402790182,3.55006278,17453.0,17452.0,0.01449019]
[1673402790445,4.12713832,17453.0,17452.0,0.01449019]
[1673402790700,5.43657232,17453.0,17452.0,0.01449019]
[1673402792089,4.97206874,17453.0,17452.0,0.01449019]
[1673402792345,5.10706874,17453.0,17452.0,0.01449019]
[1673402792873,5.81284732,17453.0,17452.0,0.01449019]
[1673402793395,5.70069441,17453.0,17452.0,0.01449019]
[1673402793644,5.81270191,17453.0,17452.0,0.01449019]
[1673402793985,6.39209297,17453.0,17452.0,0.01449019]
[1673402794789,6.83499579,17453.0,17452.0,0.01449019]
[1673402795339,6.25715297,17453.0,17452.0,0.01449019]
[1673402795618,0.3,17452.0,17451.0,0.01364549]
[1673402795879,4.64429584,17452.0,17451.0,0.01364549]
[1673402796146,4.96979584,17452.0,17451.0,0.01364549]
[1673402796930,5.5491869,17452.0,17451.0,0.01364549]
[1673402797971,5.6851869,17452.0,17451.0,0.01364549]
[1673402798529,5.69974351,17452.0,17451.0,0.01364549]
[1673402799342,5.56374351,17452.0,17451.0,0.01364549]
[1673402799601,5.69974351,17452.0,17451.0,0.01364549]
[1673402799861,5.56374351,17452.0,17451.0,0.01364549]
[1673402800909,5.69974351,17452.0,17451.0,0.01364549]
[1673402801162,6.25228026,17452.0,17451.0,0.01364549]
[1673402801422,6.38828026,17452.0,17451.0,0.01364549]
[1673402801678,6.22628026,17452.0,17451.0,0.01364549]
[1673402802971,6.80418308,17452.0,17451.0,0.01364549]
[1673402803262,6.22634026,17452.0,17451.0,0.01364549]
[1673402804027,6.38984026,17452.0,17451.0,0.01364549]
[1673402804831,0.3,17451.0,17450.0,0.02047728]
[1673402805052,5.97956791,17451.0,17450.0,0.02047728]
[1673402805564,5.40017685,17451.0,17450.0,0.02047728]
[1673402805833,0.3,17450.0,17449.0,0.02134375]
[1673402806141,5.31333013,17450.0,17449.0,0.02134375]
[1673402806372,4.88613822,17450.0,17449.0,0.02038028]
[1673402806635,4.72413822,17450.0,17449.0,0.02038028]
[1673402807685,4.86013822,17450.0,17449.0,0.02038028]
[1673402808211,4.72413822,17450.0,17449.0,0.02038028]
[1673402808498,5.43952928,17450.0,17449.0,0.02038028]
[1673402808719,0.3,17449.0,17447.0,0.01657944]
[1673402808965,2.20510428,17448.0,17447.0,0.01657944]
[1673402809213,1.84612128,17448.0,17447.0,0.01657944]
[1673402809717,1.93442577,17448.0,17447.0,0.01657944]
[1673402810451,1.09710113,17448.0,17447.0,0.01657944]
[1673402810707,0.84080175,17448.0,17447.0,0.01657944]
[1673402811260,0.97680175,17448.0,17447.0,0.01657944]
[1673402813105,0.23286449,17448.0,17447.0,0.01657944]
[1673402813366,0.70373075,17448.0,17447.0,0.01657944]
[1673402813668,2.17330854,17448.0,17447.0,0.01657944]
[1673402814203,2.42960792,17448.0,17447.0,0.01657944]
[1673402814695,0.40373075,17448.0,17447.0,0.01657944]
[1673402814972,0.23280449,17448.0,17447.0,0.01657944]
[1673402815253,2.72630782,17448.0,17447.0,0.01657944]
[1673402815513,2.80235742,17448.0,17447.0,0.01657944]
[1673402817988,2.91860828,17448.0,17447.0,0.01657944]
[1673402818521,2.79716693,17448.0,17447.0,0.01657944]
[1673402818808,3.08529082,17448.0,17447.0,0.01657944]
[1673402819587,2.61640088,17448.0,17447.0,0.01657944]
[1673402819852,2.25741907,17448.0,17447.0,0.01657944]
[1673402820099,2.62374716,17448.0,17447.0,0.01657944]
[1673402820364,2.32374716,17448.0,17447.0,0.01657944]
[1673402820627,2.05061616,17448.0,17447.0,0.01657944]
[1673402821153,2.22147722,17448.0,17447.0,0.01657944]
[1673402822714,2.49785016,17448.0,17447.0,0.01657944]
[1673402822956,3.02769823,17448.0,17447.0,0.01657944]
[1673402823216,4.61246823,17448.0,17447.0,0.01657944]
[1673402824022,4.33609529,17448.0,17447.0,0.01657944]
[1673402824291,2.39234229,17448.0,17447.0,0.01657944]
[1673402824566,2.09234229,17448.0,17447.0,0.01657944]
[1673402824823,2.64891197,17448.0,17447.0,0.01657944]
[1673402825084,2.39234229,17448.0,17447.0,0.01657944]
[1673402825354,4.33680786,17448.0,17447.0,0.01657944]
[1673402825913,3.99507535,17448.0,17447.0,0.01657944]
[1673402826449,3.97833493,17448.0,17447.0,0.01657944]
[1673402826747,4.59463212,17448.0,17447.0,0.01657944]
[1673402827007,4.23564912,17448.0,17447.0,0.01657944]
[1673402827562,2.7989032,17448.0,17447.0,0.01657944]
[1673402827833,3.1413441,17448.0,17447.0,0.01657944]
[1673402828656,2.7989032,17448.0,17447.0,0.01657944]
[1673402828920,3.14134294,17448.0,17447.0,0.01657944]
[1673402829184,3.67859935,17448.0,17447.0,0.01657944]
[1673402829438,2.7989032,17448.0,17447.0,0.01657944]
[1673402829697,2.2172722,17448.0,17447.0,0.01657944]
[1673402830218,0.80425922,17448.0,17447.0,0.01657944]
[1673402830488,1.95101035,17448.0,17447.0,0.01657944]
[1673402830935,2.3781743,17448.0,17447.0,0.01657944]
[1673402831152,2.12118537,17448.0,17447.0,0.01657944]
[1673402831387,2.55979947,17448.0,17447.0,0.18007944]
[1673402833998,1.95119865,17448.0,17447.0,0.18007944]
[1673402834268,0.80444752,17448.0,17447.0,0.18007944]
[1673402834520,0.80444752,17448.0,17447.0,0.53906244]
[1673402834795,0.80444752,17448.0,17447.0,0.18007944]
[1673402835850,0.80444752,17448.0,17447.0,0.53906244]
[1673402836110,0.80444752,17448.0,17447.0,0.18007944]
[1673402837702,0.56463633,17448.0,17447.0,0.18007944]
[1673402839029,0.73582353,17448.0,17447.0,0.18007944]
[1673402840116,0.73582353,17448.0,17447.0,0.75324344]
[1673402840606,0.73582353,17448.0,17447.0,0.18007944]
[1673402840869,2.05252687,17448.0,17447.0,0.18007944]
[1673402841645,1.88247597,17448.0,17447.0,0.18007944]
[1673402842925,2.05252687,17448.0,17447.0,0.18007944]
[1673402843196,2.30958726,17448.0,17447.0,0.18007944]
[1673402843459,1.88242162,17448.0,17447.0,0.18007944]
[1673402844010,2.30958726,17448.0,17447.0,0.18007944]
[1673402844276,2.30959039,17448.0,17447.0,0.18007944]
[1673402844575,2.05252687,17448.0,17447.0,0.18007944]
[1673402844831,2.48949001,17448.0,17447.0,0.18007944]
[1673402845958,2.68455824,17448.0,17447.0,0.18001582]
[1673402846469,2.1468454,17448.0,17447.0,0.18001582]
[1673402846957,2.76101779,17448.0,17447.0,0.01651582]
[1673402846959,2.33385215,17448.0,17447.0,0.01651582]
[1673402847221,2.69283515,17448.0,17447.0,0.01651582]
[1673402847476,3.57446615,17448.0,17447.0,0.01651582]
[1673402847732,4.0871375,17448.0,17447.0,0.01651582]
[1673402848271,4.0871375,17448.0,17446.0,0.02025655]
[1673402848551,3.14783782,17447.0,17446.0,0.02025655]
[1673402848805,2.78885482,17447.0,17446.0,0.02025655]
[1673402849067,2.78885482,17447.0,17446.0,0.01929437]
[1673402850159,2.78891482,17447.0,17446.0,0.01929437]
[1673402850410,2.92391482,17447.0,17446.0,0.01929437]
[1673402852001,2.21503934,17447.0,17446.0,0.01929437]
[1673402852523,2.75205786,17447.0,17446.0,0.01929437]
[1673402854819,3.05205786,17447.0,17446.0,0.01929437]
[1673402855089,3.32516186,17447.0,17446.0,0.01929437]
[1673402855845,3.1307388,17447.0,17446.0,0.01929437]
[1673402856096,3.66355586,17447.0,17446.0,0.01929437]
[1673402856619,3.1307388,17447.0,17446.0,0.01929437]
[1673402856869,2.5575748,17447.0,17446.0,0.01929437]
[1673402857145,2.12061166,17447.0,17446.0,0.01929437]
[1673402857690,2.55482297,17447.0,17446.0,0.01929437]
[1673402858194,3.08770299,17447.0,17446.0,0.01929437]
[1673402860051,2.74510753,17447.0,17446.0,0.01929437]
[1673402860826,3.31827153,17447.0,17446.0,0.01929437]
[1673402861340,3.63124256,17447.0,17446.0,0.01929437]
[1673402861864,4.56338956,17447.0,17446.0,0.01929437]
[1673402862116,4.12212317,17447.0,17446.0,0.01929437]
[1673402862418,3.76314017,17447.0,17446.0,0.01929437]
[1673402863404,3.46314017,17447.0,17446.0,0.01929437]
[1673402864423,3.89135382,17447.0,17446.0,0.01929437]
[1673402864961,3.46314017,17447.0,17446.0,0.01929437]
[1673402865433,3.76314017,17447.0,17446.0,0.01929437]
[1673402865676,3.89131935,17447.0,17446.0,0.01929437]
[1673402866432,3.46314017,17447.0,17446.0,0.01929437]
[1673402867152,3.89128969,17447.0,17446.0,0.01929437]
[1673402867402,3.46314017,17447.0,17446.0,0.01929437]
[1673402867912,4.21889292,17447.0,17446.0,0.01929437]
[1673402868172,3.76314017,17447.0,17446.0,0.01929437]
[1673402868935,3.46314017,17447.0,17446.0,0.01929437]
[1673402869195,3.89130798,17447.0,17446.0,0.01929437]
[1673402869718,4.2338401,17447.0,17446.0,0.01929437]
[1673402870070,2.12042077,17447.0,17446.0,0.01929437]
[1673402870254,1.94916253,17447.0,17446.0,0.01929437]
[1673402870529,0.80244591,17447.0,17446.0,0.01929437]
[1673402871468,1.94927749,17447.0,17446.0,0.01929437]
[1673402871709,2.3774453,17447.0,17446.0,0.01929437]
[1673402871961,2.12053573,17447.0,17446.0,0.01929437]
[1673402872218,2.55308628,17447.0,17446.0,0.01929437]
[1673402872577,3.08629776,17447.0,17446.0,0.01918965]
[1673402873077,2.74376564,17447.0,17446.0,0.01918965]
[1673402873575,3.31692964,17447.0,17446.0,0.01918965]
[1673402875635,2.21055416,17447.0,17446.0,0.01918965]
[1673402875884,1.94939079,17447.0,17446.0,0.01918965]
[1673402876136,0.80255921,17447.0,17446.0,0.01918965]
[1673402876652,0.97386249,17447.0,17446.0,0.01918965]
[1673402876913,0.63125964,17447.0,17446.0,0.34448965]
[1673402877182,0.63125964,17447.0,17446.0,0.70347265]
[1673402877467,0.80255921,17447.0,17446.0,0.70347265]
[1673402877780,2.24254069,17447.0,17446.0,0.70347265]
[1673402877991,1.94937288,17447.0,17446.0,0.34548965]
[1673402878252,1.81437288,17447.0,17446.0,0.34448965]
[1673402878508,1.88537288,17447.0,17446.0,0.34648965]
[1673402878764,2.05658855,17447.0,17446.0,0.34648965]
[1673402879051,1.88538727,17447.0,17446.0,0.02118965]
[1673402879268,2.05658855,17447.0,17446.0,0.02118965]
[1673402879783,0.73862024,17447.0,17446.0,0.02118965]
[1673402880041,0.56736784,17447.0,17446.0,0.01118965]
[1673402880542,0.90997087,17447.0,17446.0,0.01118965]
[1673402880802,0.73862024,17447.0,17446.0,0.01118965]
[1673402881039,1.88543255,17447.0,17446.0,0.01118965]
[1673402881476,2.05658719,17447.0,17446.0,0.01118965]
[1673402881969,2.49248976,17447.0,17446.0,0.01118965]
[1673402882994,2.14988691,17447.0,17446.0,0.01118965]
[1673402883519,2.49280267,17447.0,17446.0,0.01118965]
[1673402886545,2.3141385,17447.0,17446.0,0.01118965]
[1673402887063,1.88597069,17447.0,17446.0,0.01118965]
[1673402887328,2.31414127,17447.0,17446.0,0.01118965]
[1673402887603,1.88597346,17447.0,17446.0,0.01118965]
[1673402887864,2.0569001,17447.0,17446.0,0.01118965]
[1673402888619,2.57084932,17447.0,17446.0,0.01118965]
[1673402888877,2.14983687,17447.0,17446.0,0.01118965]
[1673402890135,2.49280891,17447.0,17446.0,0.01118965]
[1673402892176,2.05695638,17447.0,17446.0,0.01118965]
[1673402892698,1.8860335,17447.0,17446.0,0.01118965]
[1673402893231,1.8860335,17447.0,17446.0,0.00118965]
[1673402893499,2.49348452,17447.0,17446.0,0.00118965]
[1673402900899,2.05695638,17447.0,17446.0,0.00118965]
[1673402901431,2.49373259,17447.0,17446.0,0.00118965]
[1673402902216,2.05695638,17447.0,17446.0,0.00118965]
[1673402902749,2.49374407,17447.0,17446.0,0.00118965]
[1673402903023,1.88602529,17447.0,17446.0,0.00118965]
[1673402903336,1.88600289,17447.0,17446.0,0.00118965]
[1673402903595,2.05693398,17447.0,17446.0,0.00118965]
[1673402903876,2.49376578,17447.0,17446.0,0.00118965]
[1673402904700,2.49376662,17447.0,17446.0,0.00118965]
[1673402904957,2.49376706,17447.0,17446.0,0.00118965]
[1673402905753,0.37542466,17446.0,17445.0,0.53489722]
[1673402906042,0.80421727,17446.0,17444.0,0.73754]
[1673402906314,0.50421727,17446.0,17444.0,1.310783]
[1673402906590,0.50421727,17446.0,17444.0,1.91084358]
[1673402906863,0.50421727,17446.0,17445.0,0.358983]
[1673402907116,0.50421727,17446.0,17445.0,0.008]
[1673402907401,0.50423791,17446.0,17444.0,2.21082858]
[1673402907667,0.51623791,17446.0,17444.0,2.22182858]
[1673402907942,0.17153768,17445.0,17444.0,2.21082858]
[1673402908206,0.17153768,17445.0,17444.0,2.26981158]
[1673402908767,0.17153768,17445.0,17444.0,2.28081158]
[1673402909036,0.17153768,17445.0,17444.0,2.26981158]
[1673402909330,0.18753768,17445.0,17444.0,2.28081158]
[1673402909597,0.44481325,17445.0,17444.0,2.28081158]
[1673402909849,0.18753768,17445.0,17444.0,2.28081158]
[1673402912399,0.016,17445.0,17444.0,2.28081158]
[1673402913656,0.18753768,17445.0,17444.0,2.28081158]
[1673402915241,0.18759768,17445.0,17444.0,2.28081158]
[1673402915499,6.18477668,17445.0,17444.0,2.28081158]
[1673402915780,6.18477668,17445.0,17444.0,1.92182858]
[1673402917061,6.18477668,17445.0,17444.0,1.42182858]
[1673402917293,6.18477668,17445.0,17444.0,1.58532858]
[1673402918824,6.18477668,17445.0,17444.0,1.75705032]
[1673402919092,6.18477668,17445.0,17444.0,1.58532858]
[1673402919340,6.18477668,17445.0,17444.0,1.75705032]
[1673402920107,6.013239,17445.0,17444.0,1.59355032]
[1673402920365,6.013179,17445.0,17444.0,1.59355032]
[1673402920597,6.18471668,17445.0,17444.0,1.59355032]
[1673402921359,6.18471668,17445.0,17444.0,1.42182858]
[1673402923566,6.18471668,17445.0,17444.0,1.157468]
[1673402924086,6.44199225,17445.0,17444.0,1.157468]
[1673402926192,6.18471668,17445.0,17444.0,1.157468]
[1673402926454,6.44199225,17445.0,17444.0,1.157468]
[1673402928335,8.20441572,17445.0,17444.0,0.584238]
[1673402928616,7.05752979,17445.0,17444.0,0.584238]
[1673402929153,6.88612542,17445.0,17444.0,0.584238]
[1673402929413,7.05752979,17445.0,17444.0,0.584238]
[1673402930193,7.05752979,17445.0,17444.0,0.011]
[1673402931685,6.88608346,17445.0,17444.0,0.011]
[1673402932800,7.05752979,17445.0,17444.0,0.011]
[1673402933582,8.20442131,17445.0,17444.0,0.011]
[1673402933843,7.05752979,17445.0,17444.0,0.011]
[1673402934140,8.20442762,17445.0,17444.0,0.011]
[1673402934403,9.05201154,17445.0,17444.0,0.011]
[1673402934667,8.37531986,17445.0,17444.0,0.011]
[1673402935197,8.6325521,17445.0,17444.0,0.011]
[1673402935450,8.80959482,17445.0,17444.0,0.011]
[1673402936224,8.88592466,17445.0,17444.0,0.011]
[1673402937277,8.44182148,17445.0,17444.0,0.011]
[1673402937583,8.85427869,17445.0,17444.0,0.011]
[1673402937841,8.44182148,17445.0,17444.0,0.011]
[1673402939075,8.8359864,17445.0,17444.0,0.011]
[1673402939884,8.78444234,17445.0,17444.0,0.011]
[1673402940204,9.30795353,17445.0,17444.0,0.011]
[1673402940435,9.88118353,17445.0,17444.0,0.011]
[1673402941435,9.35767492,17445.0,17444.0,0.011]
[1673402941716,9.01505148,17445.0,17444.0,0.011]
[1673402941920,9.48425489,17445.0,17444.0,0.01088353]
[1673402942172,9.01505148,17445.0,17444.0,0.01088353]
[1673402943170,9.37403448,17445.0,17444.0,0.01088353]
[1673402943935,8.94586667,17445.0,17444.0,0.01088353]
[1673402944943,9.81909667,17445.0,17444.0,0.01088353]
[1673402945490,10.39848773,17445.0,17444.0,0.01088353]
[1673402945752,9.81909667,17445.0,17444.0,0.01088353]
[1673402946275,9.51909667,17445.0,17444.0,0.01088353]
[1673402946545,9.81909667,17445.0,17444.0,0.01088353]
[1673402946815,9.54836845,17445.0,17444.0,0.01088353]
[1673402947063,9.97638674,17445.0,17444.0,0.01088353]
[1673402947318,10.5557778,17445.0,17444.0,0.01088353]
[1673402947541,10.42775951,17445.0,17444.0,0.01088353]
[1673402947940,9.54836845,17445.0,17444.0,0.01088353]
[1673402948154,10.27638145,17445.0,17444.0,0.01088353]
[1673402948339,9.84836845,17445.0,17444.0,0.01088353]
[1673402948849,0.3,17444.0,17443.0,0.0207096]
[1673402949098,3.42905978,17444.0,17443.0,0.0207096]
[1673402949606,3.72905978,17444.0,17443.0,0.0207096]
[1673402949859,3.42905978,17444.0,17443.0,0.0207096]
[1673402950419,3.50705978,17444.0,17443.0,0.0207096]
[1673402950616,3.81685894,17444.0,17443.0,0.0207096]
[1673402950881,0.7792904,17443.0,17441.0,0.02219107]
[1673402951152,1.36889813,17443.0,17441.0,0.02219107]
[1673402951409,0.95044867,17443.0,17441.0,0.02219107]
[1673402951682,1.36917036,17443.0,17441.0,0.02219107]
[1673402952452,0.80373523,17442.0,17441.0,0.02319107]
[1673402952986,0.80373523,17442.0,17441.0,0.02220789]
[1673402953520,0.50373523,17442.0,17441.0,0.02120789]
[1673402954544,0.51973523,17442.0,17441.0,0.02220789]
[1673402956849,0.81973523,17442.0,17441.0,0.01220789]
[1673402957560,0.81979523,17442.0,17441.0,0.01220789]
[1673402959325,0.51979523,17442.0,17441.0,0.01220789]
[1673402959574,0.50379523,17442.0,17441.0,0.01120789]
[1673402960609,0.51573523,17442.0,17441.0,0.01220789]
[1673402960935,0.50373523,17442.0,17441.0,0.01120789]
[1673402961179,0.50873523,17442.0,17441.0,0.01220789]
[1673402962499,0.6798935,17442.0,17441.0,0.01220789]
[1673402962764,0.9798935,17442.0,17441.0,0.01220789]
[1673402963020,0.50873523,17442.0,17441.0,0.01220789]
[1673402963770,0.70873523,17442.0,17441.0,0.01220789]
[1673402964297,1.79519652,17441.0,17440.0,0.02311002]
[1673402966104,1.49519652,17441.0,17440.0,0.02311002]
[1673402966880,1.51119652,17441.0,17440.0,0.02311002]
[1673402967724,1.51125652,17441.0,17440.0,0.02311002]
[1673402969944,1.51125652,17441.0,17440.0,0.59650402]
[1673402970964,1.51125652,17441.0,17440.0,1.16989802]
[1673402972596,0.52346441,17441.0,17440.0,0.75549991]
[1673402972857,0.52340441,17441.0,17440.0,0.75549991]
[1673402974493,0.52340441,17441.0,17440.0,0.18210591]
[1673402977701,0.69456268,17441.0,17440.0,0.18210591]
[1673402978225,0.95128958,17441.0,17439.0,1.146807]
[1673402978482,0.95128958,17441.0,17439.0,1.31853074]
[1673402978483,0.69456268,17441.0,17439.0,1.31853074]
[1673402978742,0.69456268,17441.0,17439.0,2.02240956]
[1673402979287,0.67856268,17441.0,17439.0,2.02240956]
[1673402980013,0.69356268,17441.0,17439.0,2.02240956]
[1673402980267,0.95028958,17441.0,17439.0,2.02240956]
[1673402980770,0.95028958,17441.0,17439.0,1.85068782]
[1673402981291,0.95028958,17441.0,17439.0,2.02240956]
[1673402987666,0.69356268,17441.0,17439.0,2.02240956]
[1673402987918,0.69356268,17441.0,17439.0,2.27998802]
[1673402988162,0.52240441,17441.0,17439.0,2.62272165]
[1673402988420,0.52240441,17441.0,17440.0,0.47172174]
[1673402988681,0.52240441,17441.0,17440.0,0.74511574]
[1673402989211,0.50740441,17441.0,17440.0,0.26582534]
[1673402989675,0.52340441,17441.0,17440.0,0.26582534]
[1673402989938,0.52340441,17441.0,17440.0,0.43777509]
[1673402990456,0.52340441,17441.0,17440.0,0.26582534]
[1673402990731,0.18715827,17441.0,17440.0,0.26582534]
[1673402991266,0.7062088,17441.0,17440.0,0.26582534]
[1673402997199,0.7062088,17441.0,17439.0,1.00292621]
[1673402997456,1.42261394,17441.0,17439.0,0.573398]
[1673402997712,0.17115827,17440.0,17439.0,0.573398]
[1673402997967,0.47115827,17440.0,17439.0,0.573398]
[1673402998228,0.17115827,17440.0,17439.0,0.573398]
[1673402998803,0.42788517,17440.0,17438.0,0.76947324]
[1673402999066,1.18681229,17440.0,17438.0,0.76947324]
[1673402999325,0.50186423,17439.0,17438.0,0.76947324]
[1673402999582,0.50186423,17439.0,17438.0,0.02407049]
[1673402999583,1.3894087,17439.0,17438.0,0.02407049]
[1673402999866,1.13207199,17439.0,17438.0,0.02310919]
[1673403000135,0.6730225,17439.0,17438.0,0.02310919]
[1673403000395,0.9297494,17439.0,17438.0,0.02310919]
[1673403000918,0.6730225,17439.0,17438.0,0.02310919]
[1673403001160,0.9437494,17439.0,17438.0,0.02310919]
[1673403002696,0.6870225,17439.0,17438.0,0.02310919]
[1673403002969,0.51592423,17439.0,17438.0,0.02310919]
[1673403003226,0.6870825,17439.0,17438.0,0.02310919]
[1673403003479,0.51592423,17439.0,17438.0,0.02310919]
[1673403003738,0.6870825,17439.0,17438.0,0.02310919]
[1673403004025,0.51592423,17439.0,17438.0,0.02310919]
[1673403004285,0.6870825,17439.0,17438.0,0.02310919]
[1673403004547,0.51592423,17439.0,17438.0,0.02310919]
[1673403006609,0.6870825,17439.0,17438.0,0.02310919]
[1673403006838,0.51592423,17439.0,17438.0,0.02310919]
[1673403007094,0.6870825,17439.0,17438.0,0.02310919]
[1673403007358,0.51592423,17439.0,17438.0,0.02310919]
[1673403007633,0.50192423,17439.0,17438.0,0.02310919]
[1673403007895,0.51586423,17439.0,17438.0,0.02310919]
[1673403008164,0.014,17439.0,17438.0,1.33447806]
[1673403008434,0.014,17439.0,17438.0,2.53467101]
[1673403008700,0.53454183,17440.0,17438.0,2.53467101]
[1673403009012,0.53454183,17440.0,17439.0,0.206024]
[1673403009227,0.53454183,17440.0,17439.0,1.652878]
[1673403009753,0.53454183,17440.0,17439.0,1.446854]
[1673403010352,0.54654183,17440.0,17439.0,1.446854]
[1673403010560,6e-05,17440.0,17439.0,1.805837]
[1673403010802,0.00506,17440.0,17439.0,1.805837]
[1673403015909,0.005,17440.0,17439.0,1.805837]
[1673403016627,0.005,17440.0,17439.0,2.52319517]
[1673403017150,0.005,17440.0,17439.0,1.505837]
[1673403018418,0.005,17440.0,17439.0,1.805837]
[1673403018635,0.005,17440.0,17439.0,1.97778675]
[1673403019404,0.005,17440.0,17439.0,1.805837]
[1673403019657,0.005,17440.0,17439.0,1.97778675]
[1673403021182,0.005,17440.0,17439.0,2.39756521]
[1673403021443,0.005,17440.0,17439.0,4.51919807]
[1673403021762,0.00488366,17440.0,17439.0,4.64038419]
[1673403021986,0.00488366,17440.0,17439.0,5.49125277]
[1673403022231,6e-05,17441.0,17439.0,4.83792417]
[1673403022479,6e-05,17441.0,17440.0,2.12339208]
[1673403022751,6e-05,17441.0,17440.0,3.27018008]
[1673403023004,6e-05,17441.0,17440.0,3.0982902]
[1673403023248,6e-05,17441.0,17440.0,3.09828935]
[1673403023500,0.01406,17441.0,17440.0,3.10328935]
[1673403023756,0.01406,17441.0,17440.0,2.93988935]
[1673403024759,0.01406,17441.0,17440.0,2.93984594]
[1673403027099,0.01406,17441.0,17440.0,2.59235825]
[1673403027628,0.01406,17441.0,17440.0,2.93950704]
[1673403028190,0.01406,17441.0,17440.0,2.93950761]
[1673403028941,0.01406,17441.0,17440.0,2.93944187]
[1673403029497,0.01406,17441.0,17440.0,3.23944187]
[1673403029784,0.01406,17441.0,17440.0,2.93944187]
[1673403030314,0.01406,17441.0,17440.0,4.08184841]
[1673403030571,0.01406,17441.0,17440.0,4.52437679]
[1673403030856,0.014,17441.0,17440.0,4.22671235]
[1673403031125,0.00372238,17441.0,17440.0,3.34585567]
[1673403031376,0.00372238,17441.0,17440.0,3.57421312]
[1673403031636,0.00372238,17441.0,17440.0,3.27421595]
[1673403032196,0.00372238,17441.0,17440.0,3.10268487]
[1673403033293,0.00372238,17441.0,17440.0,2.1628789]
[1673403033593,0.00372238,17441.0,17440.0,1.99132557]
[1673403033849,0.00372238,17441.0,17440.0,1.98533757]
[1673403035187,0.00372238,17441.0,17440.0,2.15386797]
[1673403035711,0.00372238,17441.0,17440.0,1.79474397]
[1673403041525,0.00372238,17441.0,17440.0,1.59474397]
[1673403041780,0.00372238,17441.0,17440.0,1.89474397]
[1673403042569,0.00372238,17441.0,17440.0,2.0662973]
[1673403042850,0.00372238,17441.0,17440.0,1.89474397]
[1673403043103,0.00372238,17441.0,17440.0,2.0662973]
[1673403043369,0.00372238,17441.0,17440.0,1.89474397]
[1673403044448,0.00372238,17441.0,17440.0,2.0662973]
[1673403044962,0.00372238,17441.0,17440.0,2.4254213]
[1673403046589,0.00372238,17441.0,17440.0,3.02960153]
[1673403046842,0.00372238,17441.0,17440.0,2.4254213]
[1673403047378,0.00372238,17441.0,17440.0,2.68274365]
[1673403047919,0.00372238,17441.0,17440.0,2.42582974]
[1673403048444,0.00372238,17441.0,17440.0,2.68315209]
[1673403048712,0.00372238,17441.0,17440.0,3.19355507]
[1673403048967,0.00372238,17441.0,17440.0,2.58932974]
[1673403050296,0.00372238,17441.0,17440.0,2.84665209]
[1673403050788,0.00372238,17441.0,17440.0,3.19325164]
[1673403056719,0.00372238,17441.0,17440.0,3.36478272]
[1673403058753,0.00372238,17441.0,17440.0,3.79363033]
[1673403058973,0.00372238,17441.0,17440.0,3.36478272]
[1673403059762,0.10372238,17441.0,17440.0,3.36478272]
[1673403060013,0.10372238,17441.0,17440.0,3.53630798]
[1673403060511,0.10372238,17441.0,17440.0,3.36481323]
[1673403060765,0.10372238,17441.0,17440.0,3.53589954]
[1673403061233,0.10372238,17441.0,17440.0,3.79373617]
[1673403061494,0.10372238,17441.0,17440.0,3.53589954]
[1673403061754,0.10372238,17441.0,17440.0,3.49281513]
[1673403062000,0.10372238,17441.0,17440.0,3.39281513]
[1673403062259,0.10372238,17441.0,17440.0,3.67101494]
[1673403062512,0.10372238,17441.0,17440.0,3.32442021]
[1673403063029,0.10372238,17441.0,17440.0,3.86816763]
[1673403063296,0.10372238,17441.0,17440.0,3.32442021]
[1673403063540,0.10372238,17441.0,17440.0,2.68146424]
[1673403063786,0.10372238,17441.0,17440.0,3.20172349]
[1673403064033,0.10372238,17441.0,17440.0,3.20213193]
[1673403064778,0.10372238,17441.0,17440.0,3.74587935]
[1673403065053,0.10372238,17441.0,17440.0,3.30596434]
[1673403065299,0.10372238,17441.0,17440.0,2.68187268]
[1673403065582,0.0280277,17441.0,17440.0,2.68187268]
[1673403065830,0.0280277,17441.0,17440.0,3.22362608]
[1673403066353,0.0280277,17441.0,17440.0,3.73848027]
[1673403066597,0.0280277,17441.0,17440.0,3.22362608]
[1673403066933,0.07615351,17441.0,17440.0,3.22362608]
[1673403067375,0.07615351,17441.0,17440.0,2.68187268]
[1673403067635,0.07615351,17441.0,17440.0,3.36088261]
[1673403067878,0.07615351,17441.0,17440.0,3.36080152]
[1673403069900,0.07615351,17441.0,17440.0,2.68179159]
[1673403070400,0.07615351,17441.0,17440.0,3.03558148]
[1673403073534,0.07615351,17441.0,17440.0,2.51829159]
[1673403074829,0.07615351,17441.0,17440.0,3.16094607]
[1673403075601,0.07615351,17441.0,17440.0,3.06004499]
[1673403076383,0.07615351,17441.0,17440.0,3.06439358]
[1673403076904,0.07615351,17441.0,17440.0,3.5696903]
[1673403077178,0.07615351,17441.0,17440.0,3.02358831]
[1673403077430,0.07615351,17441.0,17440.0,3.03314578]
[1673403078184,0.07615351,17441.0,17440.0,3.58891114]
[1673403078434,0.07615351,17441.0,17440.0,3.07364851]
[1673403082000,0.01480971,17441.0,17440.0,4.02074786]
[1673403082213,0.01480971,17441.0,17440.0,4.52616899]
[1673403082762,0.01480971,17441.0,17440.0,5.04128038]
[1673403083012,0.01480971,17441.0,17440.0,4.52616899]
[1673403083268,0.01480971,17441.0,17440.0,4.83802595]
[1673403085568,0.0045798,17441.0,17440.0,4.83802595]
[1673403091780,0.0045798,17441.0,17440.0,4.32291379]
[1673403092034,0.00074726,17441.0,17440.0,4.83795577]
[1673403093057,0.00074726,17441.0,17440.0,4.29620237]
[1673403093573,0.00074726,17441.0,17440.0,4.83558609]
[1673403094083,0.00074726,17441.0,17440.0,4.29620237]
[1673403097806,0.00074726,17441.0,17440.0,4.91283695]
[1673403098564,0.00074726,17441.0,17440.0,4.74953695]
[1673403099085,0.00074726,17441.0,17440.0,3.2651654]
[1673403099340,0.00074726,17441.0,17440.0,3.10075292]
[1673403099599,0.00074726,17441.0,17440.0,3.44438567]
[1673403099858,0.00074726,17441.0,17440.0,3.43588567]
[1673403099859,0.18601726,17441.0,17440.0,3.43588567]
[1673403100109,0.18601726,17441.0,17440.0,3.07676167]
[1673403100367,0.00074726,17441.0,17440.0,2.90490548]
[1673403100618,0.00074726,17441.0,17440.0,3.26411522]
[1673403100881,0.00074726,17441.0,17440.0,3.43597141]
[1673403101420,0.00074726,17441.0,17440.0,3.43588567]
[1673403101904,0.00074726,17441.0,17440.0,3.43597141]
[1673403102417,0.00074726,17441.0,17440.0,3.43588567]
[1673403102925,0.00074726,17441.0,17440.0,3.73588567]
[1673403103183,0.00074726,17441.0,17440.0,3.43627796]